Cogmind - Beta 16 @@@ ROGUE MODE // 2025.11.08 @ 21:19:20 Player: WOAH_a BUG Result: Self-destructed Performance ------------- Evolutions (1) 500 Regions Visited (2) 400 Robots Destroyed (26) 130 Value Destroyed (479) 479 Prototype IDs (0) 0 Alien Tech Used (0) 0 Bonus (0) 0 TOTAL SCORE: 1509 Bonus ------- None Cogmind --------- Core Integrity 400/400 Matter 181/300 Energy 365/365 System Corruption 0% Temperature Warm (119) Movement Hovering (116) Ox1 Location -9/Materials Parts ------- > --- POWER (1) -------- Improved Ion Engine > --- PROPULSION (3) --- Hover Unit Hover Unit > --- UTILITY (2) ------ Small Battery Hacking Suite > --- WEAPON (3) ------- EM Shotgun Shotgun Shotgun > --- INVENTORY (5) ---- Hover Unit Mini Grenade Launcher Datajack Heavy Hammer Peak State ------------ > --- POWER ------------ Improved Ion Engine > --- PROPULSION ------- Hover Unit Hover Unit Hover Unit > --- UTILITY ---------- Small Battery Hacking Suite > --- WEAPON ----------- EM Shotgun Shotgun Shotgun > --- INVENTORY -------- Hover Unit Beam Cannon Mini Grenade Launcher Datajack Heavy Hammer [Rating: 15] Favorites ----------- Power Ion Engine Engine Ion Engine Propulsion Hover Unit Leg Aluminum Leg Hover Unit Hover Unit Flight Unit Flight Unit Utility Small Battery Storage Small Battery Hackware Hacking Suite Protection Light Armor Plating Weapon Assault Rifle Energy Gun Particle Gun Energy Cannon Beam Cannon Ballistic Gun Assault Rifle Build | -11 -10 -9 ------- Run | Yrd Mat Mat Slots Evolved 2 | . . 2 Power . | . . . Propulsion 1 | . . 1 Utility . | . . . Weapon 1 | . . 1 Parts Attached 26 | 3 18 5 Power 3 | . 3 . Engine 3 | . 3 . Core . | . . . Reactor . | . . . Propulsion 9 | 2 6 1 Treads . | . . . Leg 2 | 2 . . Wheel . | . . . Hover 4 | . 3 1 Flight 3 | . 3 . Utility 5 | 1 3 1 Device . | . . . Storage 2 | 1 1 . Processor . | . . . Hackware 1 | . . 1 Protection 2 | . 2 . Artifact . | . . . Weapon 9 | . 6 3 Energy Gun 3 | . 2 1 Energy Cannon 1 | . 1 . Ballistic Gun 5 | . 3 2 Ballistic Cannon . | . . . Launcher . | . . . Special Weapon . | . . . Impact Weapon . | . . . Slashing Weapon . | . . . Piercing Weapon . | . . . Special Melee Weapon . | . . . Unidentified Prototypes . | . . . Parts Lost 4 | . 3 1 Power 1 | . 1 . Propulsion 2 | . 1 1 Utility . | . . . Weapon 1 | . 1 . Highest Loss Streak 3 | . 3 1 To Critical Strikes 1 | . 1 . Average Backups 4 | 3 4 4 Power . | . . . Propulsion 1 | . 1 1 Utility . | . . . Weapon 1 | 1 1 2 Tool/Special . | . . . Unused Backups 9 | . 4 5 Power . | . . . Propulsion 5 | . 4 1 Utility . | . . . Weapon 3 | . . 3 Tool/Special 1 | . . 1 Average Slot Usage (%) 84 | . 84 94 Engine 11 | . 11 11 Leg 3 | . 3 . Hover 19 | . 18 33 Flight 3 | . 3 . Storage 13 | . 14 11 Protection 4 | . 4 5 Energy Gun 7 | . 7 5 Energy Cannon 5 | . 5 6 Ballistic Gun 13 | . 13 15 Peak Build Rating 15 | 3 8 15 Average Rating 6 | 2 6 12 On Entrance 3 | . 3 8 Avg Prop Armor Cover (%) 8 | . 8 . Naked Turns . | . . . Heaviest Build 17 | 5 14 17 Greatest Support 20 | 20 20 18 Greatest Overweight (x) 3 | . 3 . Average Overweight (x) . | . . . Largest Inventory Capacity 8 | 8 8 5 Average Capacity 5 | 7 5 5 Most Carried 8 | 7 8 5 Average Carried 4 | 3 4 4 Final Capacity 8 | 8 5 5 Final Carried 7 | 7 5 4 Class Distribution -------------------- 93% | Mutant 6% | Gunner Dominant Class ---------------- Mutant | -10/Materials Gunner | -9/Materials Resources | -11 -10 -9 ----------- Run | Yrd Mat Mat Matter Collected 594 | 207 345 42 Remotely . | . . . Salvage Created 754 | . 595 159 Parts 54 | . 46 8 Haulers Intercepted 4 | . 2 2 Recyclers Shooed . | . . . Parts Field Recycled . | . . . Retrieved Matter . | . . . Parts Self-Destructed . | . . . Prevented . | . . . Parts Restored . | . . . Kills | -11 -10 -9 ------- Run | Yrd Mat Mat Combat Hostiles Destroyed 15 | . 14 1 Guns 12 | . 11 1 Cannons 3 | . 3 . Classes Destroyed 6 | . 5 1 Worker 2 | . 2 . Hauler 4 | . 2 2 Operator 1 | . . 1 Watcher 4 | . 3 1 Swarmer 6 | . 6 . Grunt 9 | . 8 1 Best Kill Streak 4 | . 4 3 Combat Bots Only 3 | . 3 1 Max Kills in Single Turn 2 | . 1 2 Gunslinging . | . . . Exploded . | . . . Melee . | . . . Uniques/NPCs Destroyed . | . . . Combat | -11 -10 -9 -------- Run | Yrd Mat Mat Hostile Shots Fired 73 | . 61 12 Missed 18 | . 16 2 Hits 55 | . 45 10 Projectile 55 | . 45 10 Critical Strikes 2 | . 2 . Damage Taken 604 | . 448 156 Core 76 | . 76 . Absorbed by Shields . | . . . Core Remaining (%) 84 | 100 69 . Volleys Fired 70 | . 64 6 Largest 3 | . 2 3 Hottest 91 | . 85 91 Shots Fired 142 | . 127 15 Gun 108 | . 95 13 Cannon 34 | . 32 2 Launcher . | . . . Special . | . . . Kinetic 74 | . 64 10 Thermal 65 | . 63 2 Explosive . | . . . Electromagnetic 3 | . . 3 Robot Hit Streak 11 | . 11 4 Robot Miss Streak 4 | . 4 3 Penetration Max . | . . . Secondary Targets 2 | . 1 1 Max Gunslinging Chain 1 | . 1 1 Shots Hit Robots 77 | . 68 9 Core Hits 37 | . 30 7 Critical Kills . | . . . Critical Parts Destroyed 1 | . . 1 Critical Strikes 7 | . 6 1 Burn 6 | . 6 . Destroy 1 | . . 1 Melee Attacks . | . . . Impact . | . . . Slashing . | . . . Piercing . | . . . Sneak Attacks . | . . . Combat Hostiles . | . . . Follow-up Attacks . | . . . Damage Inflicted 1142 | . 978 164 Guns 828 | . 682 146 Cannons 314 | . 296 18 Explosions . | . . . Melee . | . . . Ramming . | . . . Kinetic 506 | . 411 95 Thermal 585 | . 567 18 Explosive . | . . . Electromagnetic 51 | . . 51 Impact . | . . . Slashing . | . . . Piercing . | . . . Highest Corruption 3 | . 3 . Average Corruption 1 | . 1 . Corruption Purged . | . . . Corruption Blocked . | . . . Effects 2 | . 2 . Matter Fused 2 | . 2 . Overload Shots . | . . . Overflow Damage . | . . . Projectiles . | . . . Explosions . | . . . Melee . | . . . Knockbacks . | . . . Impact . | . . . Kinetic . | . . . Secondary . | . . . Self-Inflicted Damage . | . . . Shots . | . . . Rammed . | . . . Targets Rammed . | . . . Kicked . | . . . Crushed . | . . . Highest Temperature 303 | . 303 110 Average Temperature 79 | . 82 33 Received Heat Transfer 186 | . 141 45 Siege Activations . | . . . Martial Activations . | . . . Shielding Activations . | . . . Robots Disrupted . | . . . Combat Hostiles . | . . . Robots Corrupted . | . . . Combat Hostiles . | . . . Parts Fried . | . . . Impact Corruptions . | . . . Robots Melted . | . . . Combat Hostiles . | . . . Parts Melted 2 | . 2 . Heat Transferred 1850 | . 1813 37 Parts Sabotaged . | . . . Parts Stolen . | . . . Parts Stripped . | . . . Power Chain Reactions . | . . . Alert | -11 -10 -9 ------- Run | Yrd Mat Mat Maximum Alert Level . | . . . Low Security (%) 100 | 100 100 100 Level 1 . | . . . Level 2 . | . . . Level 3 . | . . . Level 4 . | . . . Level 5 . | . . . High Security . | . . . Max Security . | . . . Peak Influence 90 | . 90 60 Initial 29 | . . 29 Average 27 | . 28 41 Influence Increases 468 | . 407 61 Destroy 0b10 Robot/C 300 | . 280 20 Destroy 0b10 Robot/NC 55 | . 35 20 Destroy Leader 76 | . 70 6 Successful Hack 7 | . 7 . Disable Machine 15 | . 15 . Partial Spotted 15 | . . 15 Influence Decreases 418 | . 337 81 Entered New Map 41 | . . 41 Time Decay 337 | . 307 30 Lost Part 40 | . 30 10 Squads Dispatched 4 | . 3 1 Investigation 3 | . 3 . Extermination . | . . . Reinforcement 1 | . . 1 Assault . | . . . Garrison . | . . . Intercept . | . . . Searches Triggered . | . . . Construction Impeded . | . . . Haulers Reinforced . | . . . Active Scanning Responses . | . . . Cargo Convoy Interrupts . | . . . Stealth | -11 -10 -9 --------- Run | Yrd Mat Mat Distress Signals 5 | . 4 1 Communications Jammed . | . . . Distress Signals . | . . . Times Spotted 30 | . 23 7 Peak Tracking Total 5 | . 5 5 Tactical Retreats . | . . . Traps | -11 -10 -9 ------- Run | Yrd Mat Mat Traps Triggered 4 | . 4 . Indirectly . | . . . Trap Hack Attempts . | . . . Triggered . | . . . Disarmed . | . . . Reprogrammed . | . . . Reused . | . . . Traps Extracted . | . . . Installed . | . . . Triggered . | . . . Machines | -11 -10 -9 ---------- Run | Yrd Mat Mat Machines Disabled 2 | . 2 . Max in Single Turn 1 | . 1 . Machines Repaired . | . . . Machines Dismantled . | . . . Machines Sabotaged . | . . . Overloaded Fab Kills . | . . . Hacking | -11 -10 -9 --------- Run | Yrd Mat Mat Machines Accessed 6 | . 6 . Terminals 6 | . 6 . Fabricators . | . . . Repair Stations . | . . . Recycling Units . | . . . Scanalyzers . | . . . Garrison Access . | . . . Total Hacks 18 | . 18 . Successful 6 | . 6 . Failed 12 | . 12 . Catastrophic 2 | . 2 . Database Lockouts . | . . . Manual 11 | . 11 . Terminals 18 | . 18 . Fabricators . | . . . Repair Stations . | . . . Recycling Units . | . . . Scanalyzers . | . . . Garrison Access . | . . . Terminal Hacks 6 | . 6 . Emergency Access Points 1 | . 1 . Locate Traps 1 | . 1 . Dispatch Records 1 | . 1 . Transport Status 1 | . 1 . Hauler Manifests 1 | . 1 . Registered Components 1 | . 1 . Fabricator Hacks . | . . . Repair Station Hacks . | . . . Recycling Unit Hacks . | . . . Scanalyzer . | . . . Garrison Access Hacks . | . . . Unauthorized Hacks . | . . . Terminals . | . . . Fabricators . | . . . Repair Stations . | . . . Recycling Units . | . . . Scanalyzers . | . . . Garrison Access . | . . . Data Cores Recovered 1 | . . 1 Used . | . . . Hacking Detections 6 | . 6 . Full Trace Events 3 | . 3 . Feedback Events 1 | . 1 . Corruption 1 | . 1 . Feedback Blocked . | . . . Robot Schematics Acquired . | . . . Robots Built . | . . . Authchips . | . . . Time . | . . . Total Robot Build Rating . | . . . Part Schematics Acquired . | . . . Parts Built . | . . . Authchips . | . . . Time . | . . . Total Part Build Rating . | . . . Part Studies Acquired . | . . . Parts Repaired . | . . . Time . | . . . Parts Recycled . | . . . Recycled Matter . | . . . Retrieved Matter . | . . . Retrieved Components . | . . . Parts Scanalyzed . | . . . Part Schematics Acquired . | . . . Parts Damaged . | . . . Bothacking | -11 -10 -9 ------------ Run | Yrd Mat Mat Used RIF Installer . | . . . Robots Hacked . | . . . Non-combat . | . . . Combat . | . . . Robot Hacks Applied . | . . . Relay Couplers Released . | . . . Fabnet Peak Effective % . | . . . Robots Rewired . | . . . Allies Hacked . | . . . Hacks Repelled . | . . . Allies | -11 -10 -9 -------- Run | Yrd Mat Mat Total Allies . | . . . Largest Group . | . . . Highest-Rated Group . | . . . Highest-Rated Ally . | . . . Total Orders . | . . . Ally Attacks . | . . . Total Damage . | . . . Kills . | . . . Allies Corrupted . | . . . Allies Melted . | . . . Intel | -11 -10 -9 ------- Run | Yrd Mat Mat Active Infowar (turns) . | . . . Robot Analysis Total . | . . . Derelict Logs Recovered . | . . . Drone Launches . | . . . Drone Recoveries . | . . . Exploration | -11 -10 -9 ------------- Run | Yrd Mat Mat Turns Passed 1232 | 61 1105 66 Spaces Moved 988 | 41 880 67 Core 36 | 6 30 . Treads . | . . . Legs 119 | 35 84 . Wheels . | . . . Hover 728 | . 661 67 Flight 105 | . 105 . Fastest Speed 50 | 50 56 52 Average Speed 87 | 109 89 52 Slowest Speed 200 | 120 200 52 Overloaded Moves . | . . . Propulsion Burnouts . | . . . Robots Hopped . | . . . Potential Cave-ins . | . . . Cave-ins Triggered . | . . . Exploration Rate (%) 35 | 3 93 11 Regions Visited 2 Branch Regions . Pre-discovered Areas . | . . . Known Exits Taken . | . . . Unknown Exits Taken 2 | 1 1 . Scrap Searched . | . . . Spaces Dug . | . . . Terrain Destroyed . | . . . Melee . | . . . Projectile . | . . . AOE . | . . . Terrain Rammed . | . . . Walls Destroyed . | . . . Machines Disabled . | . . . Actions | -11 -10 -9 --------- Run | Yrd Mat Mat Total 1218 | 57 1074 87 Wait 77 | 4 73 . Move 986 | 40 879 67 Hop . | . . . Pick Up 35 | 10 21 4 Fast Attach 2 | . 1 1 Attach 16 | 3 11 2 Detach 1 | . 1 . Swap 12 | . 10 2 Drop 19 | . 14 5 Fire 70 | . 64 6 Melee . | . . . Ram . | . . . Kick . | . . . Crush . | . . . Escape Stasis . | . . . Rewire . | . . . Trap . | . . . Miscellaneous . | . . . Route ------- -11/Scrapyard -10/Materials (discovered 3 exits: [*Mat x2] / [*Min]) -9/Materials History --------- Turn | Location | Event 9 | -11/Scrapyard | Discovered new exit (range 14) 62 | -11/Scrapyard | Entered Materials 292 | -10/Materials | Discovered new exit (range 10) 302 | -10/Materials | Build established: Mutant 428 | -10/Materials | Lost 3 parts (1p1n1w) 746 | -10/Materials | Discovered new exit (range 7) 823 | -10/Materials | Discovered new exit (range 10) 1062 | -10/Materials | Derelicts attacked the area 1167 | -10/Materials | Entered another Materials area 1167 | -9/Materials | Evolved 2 slots: Propulsion x1, Weapon x1 1233 | -9/Materials | Self-destructed Last Messages --------------- Dropped Assault Rifle. Acquired Shotgun. K-01 Serf collects debris. Dropped Beam Cannon. K-01 Serf collects debris. O-16 Technician: "IFF HANDSHAKE FAILED. SECURING TERMINAL." Acquired 31 matter. K-01 Serf collects debris. O-16 Technician suffers critical hit (Destroy). Destroyed Hover Unit. K-01 Serf collects debris. A-02 Transporter destroyed. K-01 Serf collects debris. ALERT: Hostiles spotted, dispatching reinforcements to Terminal M005. W-16 Scout destroyed. A-02 Transporter destroyed. Switching to secondary target: Y-45 Defender. Hover Unit destroyed. Map ----- +----------------------------------------------------+ | | | | | | | | | | | | | ?????????????????????????????????????????????????? | | ?????????????????????????????????????????????????? | | ?????????????????????????????????????????????????? | | ?????????????????????????????????????????????????? | | ?????????????????????????????????????????????????? | | ?????????????????????????????????????????????????? | | ?????????????????????????????????????????????????? | | ???????????????????????????????##########????????? | | ???????????????????????????????# *]#????????? | | ???????????????????????????????# [[#????????? | | ???????????????????????????????# #????????? | | ???????????????????????????????# #????????? | | ???????????????????????????????# #????????? | | ???????????????????????????????# """ #######??? | | ???????????????????????????????# """ ##!!!!##?? | | ???????????????????????????????# """ #! !#?? | | ??????????????????????###+###??#! # #?? | | ????????????#######+### ##########+## ### | | ??????????? "" [ | | ??????????? w T@ * | | ??????????? Y u Y ! | | ?????????????########## ########+########+#### | | ??????????????????????##[[=##??????? ??????????? | | ???????????????????????#%*[#???????? [! ?????????? | | ???????????????????????#=%[#???????? [! #????????? | | ???????????????????????#[=*#???????? [! #????????? | | ???????????????????????#[*%#???????? #????????? | | ???????????????????????# !*#????????? #????????? | | ???????????????????????# Y #????????? #????????? | | ??????????????????????? ????????? #????????? | | ??????????????????????? ?????????## #????????? | | ?????????????????????? ???????????##????????? | | ?????????????????????? ?????????????????????? | | ?????????????????????## ?????????????????????? | | ??????????????????????###+##?????????????????????? | | ?????????????????????????????????????????????????? | | ?????????????????????????????????????????????????? | | ?????????????????????????????????????????????????? | | ?????????????????????????????????????????????????? | | ?????????????????????????????????????????????????? | | ?????????????????????????????????????????????????? | | ?????????????????????????????????????????????????? | | ?????????????????????????????????????????????????? | | ?????????????????????????????????????????????????? | +----------------------------------------------------+ Best States ------------- Heat Dissipation 28 Energy Generation 12 Energy Capacity 365 Matter Stores 300 Matter Capacity 300 Sight Range 16 Terrain Scan Density 10 Armor Coverage 150 Propulsion Shielding 33 Evasion (%) 55 Offensive Hacking 10 Item Schematics ----------------- None Robot Schematics ------------------ None Fabricated ------------ Nothing Repaired ---------- Nothing Studied --------- None Alien Tech Used ----------------- None Achievements -------------- None Challenges ------------ None Game ------ Seed AutogunSalvageProcessor Manual? 0 Play Time 00:21:49 Cumulative 12.1 hours Start 2025.11.04 @ 17:22:25 End 2025.11.08 @ 21:19:20 Sessions 3 Manual Loads 0 Difficulty Rogue Special Mode None Game No. 20 Rogue 20 Adventurer 0 Explorer 0 Win Type - Total 0 Types 0/0/0/0/0/0/0/0/0/0 Lore% 3 Gallery% 13 Achievement% 10 Wizard Run 0 Options --------- Layout 1 ASCII 0 Keyboard 0 Movement Mouse Keybinds 0 Fullscreen 1 Font 24/Smallcaps Map View 50x35 Zoom Use 0% Tactical HUD 0 Map Filters NONE Filters NONE Steam 1 RUN: 227cc3d5-6c29-4ab2-867a-8688b93e81ad